Cogmind - Beta 16.1 @@@ ROGUE MODE // 2026.01.27 @ 18:55:06 Player: szymekc Result: Destroyed by 1V-K7X(R) with Subdweller Machine Gun Performance ------------- Evolutions (0) 0 Regions Visited (2) 400 Robots Destroyed (32) 160 Value Destroyed (837) 837 Prototype IDs (3) 60 Alien Tech Used (0) 0 Bonus (0) 0 TOTAL SCORE: 1457 Bonus ------- None Cogmind --------- Core Integrity 0/250 Matter 203/300 Energy 182/200 System Corruption 0% Temperature Cool (0) Movement Treading (480) Ox4 Location -10/Subcaves Parts ------- > --- POWER (1) -------- Subdweller Power Source > --- PROPULSION (2) --- Light Treads Subdweller Monowheel > --- UTILITY (2) ------ Huge Storage Unit Subdweller Optics > --- WEAPON (2) ------- Subdweller Laser Subdweller Machine Gun > --- INVENTORY (25) --- Subdweller Power Source Subdweller Power Source Subdweller Power Source Subdweller Power Source Subdweller Power Source Subdweller Power Source Subdweller Power Source Subdweller Power Source Arachnoskeleton Subdweller Monowheel Subdweller Monowheel Subdweller Monowheel Subdweller Monowheel Subdweller Monowheel Subdweller Monowheel Large Storage Unit Subdweller Optics ECM Suite Scrap Shield Subdweller Beam Cannon Subdweller Beam Cannon Subdweller Machine Gun Peak State ------------ > --- POWER ------------ Subdweller Power Source > --- PROPULSION ------- Light Treads Subdweller Monowheel > --- UTILITY ---------- Huge Storage Unit Subdweller Optics > --- WEAPON ----------- Subdweller Laser Subdweller Machine Gun > --- INVENTORY -------- Subdweller Power Source Subdweller Power Source Subdweller Power Source Subdweller Power Source Subdweller Power Source Subdweller Power Source Subdweller Power Source Subdweller Power Source Arachnoskeleton Subdweller Monowheel Subdweller Monowheel Subdweller Monowheel Subdweller Monowheel Subdweller Monowheel Subdweller Monowheel Large Storage Unit Subdweller Optics ECM Suite Scrap Shield Subdweller Beam Cannon Subdweller Beam Cannon Subdweller Machine Gun [Rating: 18] Favorites ----------- Power Subdweller Power Source Engine Subdweller Power Source Propulsion Light Treads Treads Light Treads Wheel Subdweller Monowheel Utility Huge Storage Unit Device Subdweller Optics Storage Huge Storage Unit Processor Signal Interpreter Weapon Light Cannon Energy Gun EM Pulse Gun Energy Cannon Subdweller Beam Cannon Ballistic Gun Light Assault Rifle Ballistic Cannon Light Cannon Launcher Grenade Launcher Special Weapon Mining Laser Build | -11 -10 -10 ------- Run | Yrd Mat Sub Slots Evolved . | . . . Power . | . . . Propulsion . | . . . Utility . | . . . Weapon . | . . . Parts Attached 33 | 8 8 17 Power 4 | 1 . 3 Engine 4 | 1 . 3 Core . | . . . Reactor . | . . . Propulsion 8 | 2 1 5 Treads 5 | 2 . 3 Leg . | . . . Wheel 3 | . 1 2 Hover . | . . . Flight . | . . . Utility 7 | 2 3 2 Device 4 | 2 . 2 Storage 2 | . 2 . Processor 1 | . 1 . Hackware . | . . . Protection . | . . . Artifact . | . . . Weapon 14 | 3 4 7 Energy Gun 3 | 2 . 1 Energy Cannon 2 | . . 2 Ballistic Gun 6 | 1 1 4 Ballistic Cannon 1 | . 1 . Launcher 1 | . 1 . Special Weapon 1 | . 1 . Impact Weapon . | . . . Slashing Weapon . | . . . Piercing Weapon . | . . . Special Melee Weapon . | . . . Unidentified Prototypes . | . . . Parts Lost 12 | . . 12 Power 2 | . . 2 Propulsion 4 | . . 4 Utility 1 | . . 1 Weapon 5 | . . 5 Highest Loss Streak 3 | . . 3 To Critical Strikes . | . . . Average Backups 15 | . 10 19 Power 3 | . . 5 Propulsion 4 | . 1 5 Utility 2 | . 1 3 Weapon 4 | . 5 4 Tool/Special . | . . . Unused Backups 20 | . . 20 Power 8 | . . 8 Propulsion 6 | . . 6 Utility 3 | . . 3 Weapon 2 | . . 2 Tool/Special 1 | . . 1 Average Slot Usage (%) 99 | . 100 98 Engine 14 | . 14 14 Treads 21 | . 27 18 Wheel 6 | . . 9 Device 14 | . 16 13 Storage 13 | . 11 14 Energy Cannon 3 | . . 4 Ballistic Gun 14 | . 20 12 Ballistic Cannon 6 | . 6 6 Special Weapon 2 | . . 3 Peak Build Rating 18 | 9 9 18 Average Rating 11 | 4 8 13 On Entrance 5 | . 9 8 Avg Prop Armor Cover (%) 13 | . 12 13 Naked Turns . | . . . Heaviest Build 98 | 10 90 98 Greatest Support 40 | 40 40 40 Greatest Overweight (x) 8 | . 8 4 Average Overweight (x) 2 | . . 2 Largest Inventory Capacity 25 | 5 25 25 Average Capacity 21 | 5 18 22 Most Carried 25 | 2 15 25 Average Carried 16 | . 10 19 Final Capacity 25 | 5 15 25 Final Carried 25 | 2 15 25 Class Distribution -------------------- 82% | Mutant 17% | Scavenger-Mutant Dominant Class ---------------- Mutant | -10/Materials Mutant | -10/Subcaves Resources | -11 -10 -10 ----------- Run | Yrd Mat Sub Matter Collected 1117 | 204 292 621 Remotely . | . . . Salvage Created 921 | 134 259 528 Parts 56 | 5 22 29 Haulers Intercepted 1 | . 1 . Recyclers Shooed 2 | 1 1 . Parts Field Recycled . | . . . Retrieved Matter . | . . . Parts Self-Destructed 17 | . . 17 Prevented . | . . . Parts Restored . | . . . Kills | -11 -10 -10 ------- Run | Yrd Mat Sub Combat Hostiles Destroyed 25 | . 8 17 Guns 12 | . 6 6 Cannons 9 | . . 9 AOE 4 | . 2 2 Classes Destroyed 8 | 2 5 1 Worker 1 | . 1 . Tunneler 3 | 2 1 . Hauler 1 | . 1 . Recycler 1 | 1 . . Watcher 1 | . 1 . Swarmer 7 | . 6 1 Grunt 2 | . 2 . Subdweller 16 | . . 16 Best Kill Streak 4 | 3 4 3 Combat Bots Only 3 | . 3 3 Max Kills in Single Turn 3 | 1 3 1 Gunslinging . | . . . Exploded 2 | . 2 1 Melee . | . . . Uniques/NPCs Destroyed . | . . . Combat | -11 -10 -10 -------- Run | Yrd Mat Sub Hostile Shots Fired 113 | . 30 83 Missed 28 | . 12 16 Hits 85 | . 18 67 Projectile 85 | . 18 67 AOE 2 | . . 2 Critical Strikes 2 | . 2 . Damage Taken 1844 | 35 241 1568 Core 268 | . 61 207 Absorbed by Shields . | . . . Core Remaining (%) 100 | 100 . . Volleys Fired 152 | 7 29 116 Largest 2 | 2 2 2 Hottest 110 | 60 100 110 Shots Fired 218 | 14 55 149 Gun 130 | 14 51 65 Cannon 52 | . 1 51 Launcher 6 | . 1 5 Special 30 | . 2 28 Kinetic 147 | 7 52 88 Thermal 58 | . 2 56 Explosive 6 | . 1 5 Electromagnetic 7 | 7 . . Robot Hit Streak 23 | 6 8 23 Robot Miss Streak 3 | 3 3 3 Penetration Max . | . . . Secondary Targets 1 | . . 1 Max Gunslinging Chain 1 | . . 1 Shots Hit Robots 116 | 9 33 74 Core Hits 59 | 6 20 33 Critical Kills . | . . . Critical Parts Destroyed 2 | . 1 1 Critical Strikes 3 | . 1 2 Destroy 2 | . 1 1 Blast 1 | . . 1 Melee Attacks . | . . . Impact . | . . . Slashing . | . . . Piercing . | . . . Sneak Attacks . | . . . Combat Hostiles . | . . . Follow-up Attacks . | . . . Damage Inflicted 2262 | 138 528 1596 Guns 1195 | 98 349 748 Cannons 625 | . 15 610 Explosions 404 | 39 127 238 Melee . | . . . Ramming 38 | 1 37 . Kinetic 1507 | 32 364 1111 Thermal 286 | 39 . 247 Explosive 365 | . 127 238 Electromagnetic 66 | 66 . . Impact . | . . . Slashing . | . . . Piercing . | . . . Highest Corruption . | . . . Average Corruption . | . . . Corruption Purged . | . . . Corruption Blocked . | . . . Overload Shots . | . . . Overflow Damage 21 | 21 . . Projectiles . | . . . Explosions 21 | 21 . . Melee . | . . . Knockbacks 9 | . . 9 Impact . | . . . Kinetic 9 | . . 9 Secondary . | . . . Self-Inflicted Damage 88 | 35 . 53 Shots 3 | 1 . 2 Rammed 7 | 1 6 . Targets Rammed 9 | 1 8 . Kicked . | . . . Crushed 2 | . 2 . Highest Temperature 52 | 52 27 6 Average Temperature 16 | 28 10 4 Received Heat Transfer 348 | . 117 231 Siege Activations . | . . . Martial Activations . | . . . Shielding Activations . | . . . Robots Disrupted . | . . . Combat Hostiles . | . . . Robots Corrupted . | . . . Combat Hostiles . | . . . Parts Fried . | . . . Impact Corruptions . | . . . Robots Melted . | . . . Combat Hostiles . | . . . Parts Melted 4 | . . 4 Heat Transferred 371 | 50 . 321 Parts Sabotaged . | . . . Parts Stolen . | . . . Parts Stripped . | . . . Power Chain Reactions 1 | 1 . . Alert | -11 -10 -10 ------- Run | Yrd Mat Sub Maximum Alert Level . | . . . Low Security (%) 100 | 100 100 . Level 1 . | . . . Level 2 . | . . . Level 3 . | . . . Level 4 . | . . . Level 5 . | . . . High Security . | . . . Max Security . | . . . Peak Influence 75 | 10 75 . Initial . | . . . Average 9 | . 9 . Influence Increases 326 | 15 281 30 Destroy 0b10 Robot/C 180 | . 160 20 Destroy 0b10 Robot/NC 35 | 15 20 . Destroy Leader 44 | . 34 10 Successful Hack 12 | . 12 . Destroy Structure 10 | . 10 . Lose Combat Pursuer 45 | . 45 . Influence Decreases 326 | 15 280 31 Entered New Map 1 | . . 1 Time Decay 325 | 15 280 30 Squads Dispatched . | . . . Investigation . | . . . Extermination . | . . . Reinforcement . | . . . Assault . | . . . Garrison . | . . . Intercept . | . . . Searches Triggered . | . . . Construction Impeded . | . . . Haulers Reinforced . | . . . Active Scanning Responses . | . . . Cargo Convoy Interrupts . | . . . Stealth | -11 -10 -10 --------- Run | Yrd Mat Sub Distress Signals 1 | . 1 . Communications Jammed . | . . . Distress Signals . | . . . Times Spotted 36 | . 18 18 Peak Tracking Total 4 | . 4 3 Tactical Retreats 2 | . 2 . Traps | -11 -10 -10 ------- Run | Yrd Mat Sub Traps Triggered 3 | . 2 1 Indirectly . | . . . Trap Hack Attempts . | . . . Triggered . | . . . Disarmed . | . . . Reprogrammed . | . . . Reused . | . . . Traps Extracted . | . . . Installed . | . . . Triggered . | . . . Machines | -11 -10 -10 ---------- Run | Yrd Mat Sub Machines Disabled . | . . . Max in Single Turn . | . . . Machines Repaired . | . . . Machines Dismantled . | . . . Machines Sabotaged . | . . . Overloaded Fab Kills . | . . . Hacking | -11 -10 -10 --------- Run | Yrd Mat Sub Machines Accessed 8 | . 7 1 Terminals 6 | . 6 . Fabricators . | . . . Repair Stations . | . . . Recycling Units 1 | . 1 . Scanalyzers . | . . . Garrison Access . | . . . Total Hacks 31 | . 26 5 Successful 18 | . 13 5 Failed 13 | . 13 . Catastrophic . | . . . Database Lockouts . | . . . Manual 15 | . 15 . Terminals 25 | . 25 . Fabricators . | . . . Repair Stations . | . . . Recycling Units 1 | . 1 . Scanalyzers . | . . . Garrison Access . | . . . Terminal Hacks 10 | . 5 5 Record 5 | . . 5 Robot Analysis 2 | . 2 . Prototype ID Bank 2 | . 2 . Zone Layout 1 | . 1 . Fabricator Hacks . | . . . Repair Station Hacks . | . . . Recycling Unit Hacks 1 | . 1 . Retrieve Components 1 | . 1 . Scanalyzer . | . . . Garrison Access Hacks . | . . . Unauthorized Hacks 7 | . 7 . Terminals 7 | . 7 . Botnet 2 | . 2 . Skim 5 | . 5 . Fabricators . | . . . Repair Stations . | . . . Recycling Units . | . . . Scanalyzers . | . . . Garrison Access . | . . . Data Cores Recovered . | . . . Used . | . . . Hacking Detections 5 | . 5 . Full Trace Events . | . . . Feedback Events . | . . . Feedback Blocked . | . . . Robot Schematics Acquired . | . . . Robots Built . | . . . Authchips . | . . . Time . | . . . Total Robot Build Rating . | . . . Part Schematics Acquired . | . . . Parts Built . | . . . Authchips . | . . . Time . | . . . Total Part Build Rating . | . . . Part Studies Acquired . | . . . Parts Repaired . | . . . Time . | . . . Parts Recycled . | . . . Recycled Matter . | . . . Retrieved Matter . | . . . Retrieved Components 10 | . 10 . Parts Scanalyzed . | . . . Part Schematics Acquired . | . . . Parts Damaged . | . . . Bothacking | -11 -10 -10 ------------ Run | Yrd Mat Sub Used RIF Installer . | . . . Robots Hacked . | . . . Non-combat . | . . . Combat . | . . . Robot Hacks Applied . | . . . Relay Couplers Released . | . . . Fabnet Peak Effective % . | . . . Robots Rewired . | . . . Allies Hacked . | . . . Hacks Repelled . | . . . Allies | -11 -10 -10 -------- Run | Yrd Mat Sub Total Allies . | . . . Largest Group . | . . . Highest-Rated Group . | . . . Highest-Rated Ally . | . . . Total Orders . | . . . Ally Attacks . | . . . Total Damage . | . . . Kills . | . . . Allies Corrupted . | . . . Allies Melted . | . . . Intel | -11 -10 -10 ------- Run | Yrd Mat Sub Active Infowar (turns) 4687 | 24 1764 2899 Optics 1996 | . . 1996 Terrain 329 | 13 316 . Seismic 2691 | 24 1764 903 Robot Analysis Total 2 | . 2 . Derelict Logs Recovered 2 | . . 2 Drone Launches . | . . . Drone Recoveries . | . . . Exploration | -11 -10 -10 ------------- Run | Yrd Mat Sub Turns Passed 5553 | 107 1775 3671 Spaces Moved 2487 | 47 667 1773 Core 2 | 2 . . Treads 1206 | 45 659 502 Legs . | . . . Wheels 1279 | . 8 1271 Hover . | . . . Flight . | . . . Fastest Speed 50 | 50 160 150 Average Speed 175 | 155 222 158 Slowest Speed 320 | 160 320 320 Overloaded Moves . | . . . Propulsion Burnouts . | . . . Robots Hopped . | . . . Potential Cave-ins . | . . . Cave-ins Triggered . | . . . Exploration Rate (%) 62 | 4 97 85 Regions Visited 2 Branch Regions 1 Pre-discovered Areas . | . . . Known Exits Taken . | . . . Unknown Exits Taken 2 | 1 1 . Scrap Searched 4 | . . 4 Spaces Dug 27 | . 9 18 Terrain Destroyed 41 | 5 9 27 Melee . | . . . Projectile 7 | . 2 5 AOE 34 | 5 7 22 Terrain Rammed . | . . . Walls Destroyed . | . . . Machines Disabled . | . . . Actions | -11 -10 -10 --------- Run | Yrd Mat Sub Total 3365 | 64 892 2409 Wait 593 | . 159 434 Move 2486 | 47 666 1773 Hop . | . . . Pick Up 46 | 2 16 28 Fast Attach 9 | 7 1 1 Attach 12 | . . 12 Detach 1 | . . 1 Swap 46 | 1 11 34 Drop 12 | . 2 10 Fire 152 | 7 29 116 Melee . | . . . Ram . | . . . Kick . | . . . Crush 8 | . 8 . Escape Stasis . | . . . Rewire . | . . . Trap . | . . . Miscellaneous . | . . . Route ------- -11/Scrapyard -10/Materials (discovered 6 exits: [*Mat x3] / *Min x2 / *Sub) -10/Subcaves (discovered 3 exits: [*Mat x2] / Rec) History --------- Turn | Location | Event 6 | -11/Scrapyard | Discovered new exit (range 16) 108 | -11/Scrapyard | Entered Materials 303 | -10/Materials | Build established: Mutant 351 | -10/Materials | Discovered new exit (range 9) 682 | -10/Materials | Discovered new exit (range 4) 721 | -10/Materials | Identified exit to Mines 961 | -10/Materials | Discovered new exit (range 13) 1437 | -10/Materials | Discovered new exit (range 4) 1479 | -10/Materials | Discovered new exit (range 13) 1674 | -10/Materials | Learned location of 1 exit from Storage 1695 | -10/Materials | Discovered new exit (range 16) 1729 | -10/Materials | Learned 2 Mines zone layouts 1730 | -10/Materials | Learned 2 Storage zone layouts 1731 | -10/Materials | Learned 4 Subcaves zone layouts 1784 | -10/Materials | Learned 2 Mines zone layouts 1883 | -10/Materials | Entered Subcaves 1884 | -10/Subcaves | Identified exit to Recycling 1886 | -10/Subcaves | Shifting Twisted Machinery released Sub. Monowheel 1887 | -10/Subcaves | Learned location of 1 exit from Materials 1892 | -10/Subcaves | Shifting Twisted Machinery released Flamer 1897 | -10/Subcaves | Discovered new exit (range 13) 2067 | -10/Subcaves | Discovered new exit (range 12) 2606 | -10/Subcaves | Shifting Twisted Machinery released Battle Rifle 2622 | -10/Subcaves | Shifting Twisted Machinery released Shrapnel Trap 2775 | -10/Subcaves | Core integrity fell below 50% 2817 | -10/Subcaves | Lost 3 parts (1p1n1u) 2938 | -10/Subcaves | Learned 4 Materials zone layouts 2968 | -10/Subcaves | Visited Clippyterm 2973 | -10/Subcaves | Learned Factory fabricator intel 2973 | -10/Subcaves | Learned Factory stockpile data 3016 | -10/Subcaves | Shifting Twisted Machinery released Sub. Power Source 3059 | -10/Subcaves | Shifting Twisted Machinery released Sub. Power Source 4329 | -10/Subcaves | Lost 3 parts (1n2w) 4699 | -10/Subcaves | Build established: Scavenger-Mutant 5253 | -10/Subcaves | A Subdweller sparked back to life 5276 | -10/Subcaves | Core integrity fell below 20% 5301 | -10/Subcaves | Found Prototype Leg 5324 | -10/Subcaves | Lost 3 parts (1n2w) 5552 | -10/Subcaves | Ambushed by Subdweller buried in earth 5554 | -10/Subcaves | Destroyed by 1V-K7X(R) with Subdweller Machine Gun Last Messages --------------- 05271_ Lgt. Treads destroyed. 05282_ Sub. Power Source melted. 05282_ 6O-VO6(R) destroyed. 05288_ LO-DNZ(R) suffers critical hit (Destroy). 05288_ Destroyed Sub. Monowheel. 05293_ Sub. Machine Gun destroyed. 05294_ Subatomizers dissect the Prototype Leg. 05296_ Sub. Optics melted. 05296_ LO-DNZ(R) destroyed. 05298_ Acquired 25 matter. 05301_ Acquired Prototype Leg. 05302_ Acquired 68 matter. 05305_ Acquired Sub. Monowheel. 05308_ Subatomizers dissect the Disposable Heat Sink. 05309_ Acquired Sub. Monowheel. 05385_ Sub. Machine Gun shoots sparks and powers down. 05451_ Subatomizers dissect the Disposable Heat Sink. 05464_ Acquired Sub. Laser. 05475_ Subatomizers dissect the Disposable Heat Sink. 05553_ 1V-K7X(R): "NOSTUCKSUB!" Map ----- +----------------------------------------------------+ | ???????## ####! &#????????????????# !& | | ???????## #### ##????????????????# | | ??????## ##?# #????????????????# < | | ##????# ##??# #????????????????# | | #???# #???# #????????????????# ## | | #### ##### "####????????????????# ### | | #& #????????????????####?# ## | | ""#???????????????????## # | | # ##??????????????????# # | | ### #" & #??????????????????# # | | # ### #??????????????????# | | ## ##" ##??????????????????## # | | ?# ###??# ##??????????????####### # | | ## ## ##?????####?????????##### # | | # #####????#### ##????????# # # | | # ########?# ###??????## | | # ### #???????## | | # ## #???###### # ## | | ## #???#[%# ### #### | | ?## ## #???###& ## ### # | | ?# ## ### ##????# ### ## | | ?## # ## # ##?# ###### ## | | ??# ## ##### ####??#### ## # ## | | ??# ####??# #??????#### | | #?# ##?????# #?????# ### | | ### ##?????# ##??????#@R ### # | | ## #?????## ??????>#######?### | | ####?#### ##???????????????# "## | | # ### #??? " " ???????# < ##"#### | | #?? ???????# ####??? | | ### ### #??? ???????#" #????? | | # ####?###?###??? ???????### #????? | | ## ###??#####??????? ?????????### #????? | | ### ###### #???????# #???#####???# #????? | | ### # #???????# #??## ##??# ## ##????? | | ## ## #???##### #?## #??# ####?????? | | # ### #???# # ### #??# #???????? | | " ## ## ###?# # #### ##???????? | | "" ### ## ##?? ## ## ##??????? | | """##?# #?????# ## " " ######## | | "###??# ! ##????# | ! # | | #####?## & #????# | | ??# ##?##&% ##???## | | ?## ### #???# ## ### | | ## ##?## ## ### ## #?# | | ## &% ### ## #?## #### #?# | | & ## ## ##?## ##?##### | | #??# ##??## ## | | " #??# #### ## | | " " ## ##### ## #??# | +----------------------------------------------------+ Best States ------------- Heat Dissipation 25 Energy Generation 15 Energy Capacity 250 Matter Stores 300 Matter Capacity 300 Sight Range 21 Terrain Scan Range 16 Terrain Scan Density 10 Evasion (%) 40 Recoil Reduction 2 Item Schematics ----------------- None Robot Schematics ------------------ None Fabricated ------------ Nothing Repaired ---------- Nothing Studied --------- None Alien Tech Used ----------------- None Achievements -------------- None Challenges ------------ None Game ------ Seed UtilityMetafiberNanovents Manual? 0 Play Time 00:23:43 Cumulative 1122.3 hours Start 2026.01.27 @ 18:31:59 End 2026.01.27 @ 18:55:06 Sessions 1 Manual Loads 0 Difficulty Rogue Special Mode None Game No. 357 Rogue 355 Adventurer 2 Explorer 0 Win Type - Total 86 Types 25/20/19/1/1/1/14/2/1/2 Lore% 98 Gallery% 95 Achievement% 87 Wizard Run 0 Options --------- Layout 0 ASCII 0 Keyboard 1 Movement Numpad Keybinds 0 Fullscreen 1 Font 24/Smallcaps Map View 76x50 Zoom Use 0% Tactical HUD 1 Map Filters NONE Filters NONE Steam 1 RUN: cb166e8c-c7bf-4bba-af47-5d2c5cc11bbb